fUSD/lending_fUSD_20240301
["ID","MTS","AMOUNT","RATE_DAILY","PERIOD"]
[316041978,1709333448477,-500.0,0.00021917,2]
[316041979,1709333448486,-500.0,0.00021917,2]
[316041980,1709333448495,-500.0,0.00021917,2]
[316041981,1709333448508,-2415.19,0.00021917,2]
[316041982,1709333448517,-789.16,0.00021917,2]
[316041983,1709333448526,-506.7229604,0.00021917,2]
[316041984,1709333448536,-500.0,0.00021917,2]
[316041985,1709333448545,-1462.2,0.00021917,2]
[316041986,1709333448556,-641.90245176,0.00021917,2]
[316041987,1709333448565,-500.0,0.00021917,2]
[316041988,1709333448575,-500.0,0.00021917,2]
[316041989,1709333448584,-504.24307689,0.00021917,2]
[316041990,1709333448594,-775.23,0.00021917,2]
[316041991,1709333448852,-500.0,0.00021917,2]
[316041992,1709333448862,-500.0,0.00021917,2]
[316041993,1709333448872,-564.43,0.00021917,2]
[316041994,1709333448882,-500.0,0.00021917,2]
[316041995,1709333448892,-500.0,0.00021917,2]
[316041996,1709333448901,-500.0,0.00021917,2]
[316041997,1709333448911,-500.0,0.00021917,2]
[316041998,1709333448920,-1888.43,0.00021917,2]
[316041999,1709333448930,-399.64840672,0.00021917,2]
[316042000,1709333448939,-500.0,0.00021917,2]
[316042001,1709333448948,-500.0,0.00021917,2]
[316042002,1709333448958,-606.21,0.00021917,2]
[316042003,1709333448969,-500.0,0.00021917,2]
[316042004,1709333448978,-500.0,0.00021917,2]
[316042005,1709333448987,-1138.36,0.00021917,2]
[316042006,1709333448996,-500.0,0.00021917,2]
[316042007,1709333449005,-500.0,0.00021917,2]
[316042008,1709333449014,-831.75,0.00021917,2]
[316042009,1709333449023,-500.0,0.00021917,2]
[316042010,1709333449032,-500.0,0.00021917,2]
[316042011,1709333449041,-1846.18,0.00021917,2]
[316042012,1709333449051,-500.0,0.00021917,2]
[316042013,1709333449060,-500.0,0.00021917,2]
[316042014,1709333449069,-717.16,0.00021917,2]
[316042015,1709333449078,-500.0,0.00021917,2]
[316042016,1709333449087,-500.0,0.00021917,2]
[316042017,1709333449096,-500.0,0.00021917,2]
[316042018,1709333449105,-500.0,0.00021917,2]
[316042019,1709333449114,-567.28,0.00021917,2]
[316042020,1709333449123,-607.43,0.00021917,2]
[316042021,1709333449132,-603.32,0.00021917,2]
[316042022,1709333449142,-500.0,0.00021917,2]
[316042023,1709333449152,-500.0,0.00021917,2]
[316042024,1709333449162,-500.0,0.00021917,2]
[316042025,1709333449171,-500.0,0.00021917,2]
[316042026,1709333449180,-500.0,0.00021917,2]
[316042027,1709333449189,-1005.55,0.00021917,2]
[316042028,1709333449198,-500.0,0.00021917,2]
[316042029,1709333449207,-970.4,0.00021917,2]
[316042030,1709333449216,-1205.57,0.00021917,2]
[316042031,1709333449225,-500.0,0.00021917,2]
[316042032,1709333449234,-500.0,0.00021917,2]
[316042033,1709333449243,-1202.86,0.00021917,2]
[316042034,1709333449253,-500.0,0.00021917,2]
[316042035,1709333449262,-529.86309855,0.00021917,2]
[316042036,1709333449271,-500.0,0.00021917,2]
[316042037,1709333449280,-433.75680562,0.00021917,2]
[316042038,1709333449289,-500.0,0.00021917,2]
[316042039,1709333449298,-500.0,0.00021917,2]
[316042040,1709333449307,-500.0,0.00021917,2]
[316042041,1709333449316,-500.0,0.00021917,2]
[316042042,1709333449325,-500.0,0.00021917,2]
[316042043,1709333449334,-527.35,0.00021917,2]
[316042044,1709333449343,-500.0,0.00021917,2]
[316042045,1709333449353,-501.96592013,0.00021917,2]
[316042046,1709333449363,-500.0,0.00021917,2]
[316042047,1709333449372,-505.15021391,0.00021917,2]
[316042048,1709333449381,-500.0,0.00021917,2]
[316042049,1709333449390,-500.0,0.00021917,2]
[316042050,1709333449400,-500.0,0.00021917,2]
[316042051,1709333449411,-500.0,0.00021917,2]
[316042052,1709333449421,-1078.2,0.00021917,2]
[316042053,1709333449430,-530.85,0.00021917,2]
[316042054,1709333449440,-500.0,0.00021917,2]
[316042055,1709333449451,-606.95732015,0.00021917,2]
[316042056,1709333449461,-444.71478695,0.00021917,2]
[316042057,1709333449471,-500.0,0.00021917,2]
[316042058,1709333449481,-898.77,0.00021917,2]
[316042059,1709333449491,-509.87235137,0.00021917,2]
[316042060,1709333449500,-500.0,0.00021917,2]
[316042061,1709333449511,-500.0,0.00021917,2]
[316042062,1709333449522,-500.0,0.00021917,2]
[316042063,1709333449532,-500.0,0.00021917,2]
[316042064,1709333449541,-539.35,0.00021917,2]
[316042065,1709333449550,-500.0,0.00021917,2]
[316042066,1709333449560,-2921.39,0.00021917,2]
[316042067,1709333449569,-500.0,0.00021917,2]
[316042068,1709333449579,-500.0,0.00021917,2]
[316042069,1709333449589,-500.0,0.00021917,2]
[316042070,1709333449600,-816.29,0.00021917,2]
[316042071,1709333449609,-500.0,0.00021917,2]
[316042072,1709333449619,-542.55,0.00021917,2]
[316042073,1709333449630,-500.0,0.00021917,2]
[316042074,1709333449640,-531.48592274,0.00021917,2]
[316042075,1709333449650,-500.0,0.00021917,2]
[316042076,1709333449661,-500.0,0.00021917,2]
[316042077,1709333449670,-928.75,0.00021917,2]
[316042078,1709333449679,-500.0,0.00021917,2]
[316042079,1709333449689,-500.0,0.00021917,2]
[316042080,1709333449698,-500.0,0.00021917,2]
[316042081,1709333449708,-500.0,0.00021917,2]
[316042082,1709333449717,-816.89,0.00021917,2]
[316042083,1709333449727,-500.0,0.00021917,2]
[316042084,1709333449737,-500.0,0.00021917,2]
[316042085,1709333449747,-552.0,0.00021917,2]
[316042086,1709333449757,-500.0,0.00021917,2]
[316042087,1709333449767,-500.0,0.00021917,2]
[316042088,1709333449779,-661.23,0.00021917,2]
[316042089,1709333449789,-1507.53,0.00021917,2]
[316042090,1709333449798,-500.0,0.00021917,2]
[316042091,1709333449808,-500.0,0.00021917,2]
[316042092,1709333449817,-716.07,0.00021917,2]
[316042093,1709333449827,-1052.01,0.00021917,2]
[316042094,1709333449837,-500.0,0.00021917,2]
[316042095,1709333449846,-766.88,0.00021917,2]
[316042096,1709333449855,-500.0,0.00021917,2]
[316042097,1709333449864,-500.0,0.00021917,2]
[316042098,1709333449873,-500.0,0.00021917,2]
[316042099,1709333449883,-500.0,0.00021917,2]
[316042100,1709333449893,-898.2,0.00021917,2]
[316042101,1709333449902,-500.0,0.00021917,2]
[316042102,1709333449912,-500.0,0.00021917,2]
[316042103,1709333449921,-500.0,0.00021917,2]
[316042104,1709333449930,-548.53,0.00021917,2]
[316042105,1709333449939,-500.0,0.00021917,2]
[316042106,1709333449949,-500.0,0.00021917,2]
[316042107,1709333449959,-500.0,0.00021917,2]
[316042108,1709333449969,-500.0,0.00021917,2]
[316042109,1709333449979,-1631.65,0.00021917,2]
[316042110,1709333449989,-500.0,0.00021917,2]
[316042111,1709333449999,-500.0,0.00021917,2]
[316042112,1709333450009,-517.83380108,0.00021917,2]
[316042113,1709333450019,-168.83658098,0.00021917,2]
[316042114,1709333450028,-2021.14,0.00021917,2]
[316042115,1709333450038,-500.0,0.00021917,2]
[316042116,1709333450048,-405.88065044,0.00021917,2]
[316042117,1709333450058,-1144.19,0.00021917,2]
[316042118,1709333450067,-500.0,0.00021917,2]
[316042119,1709333450076,-500.0,0.00021917,2]
[316042120,1709333450086,-500.0,0.00021917,2]
[316042121,1709333450096,-500.0,0.00021917,2]
[316042122,1709333450105,-581.86323851,0.00021917,2]
[316042123,1709333450115,-500.0,0.00021917,2]
[316042124,1709333450124,-500.0,0.00021917,2]
[316042125,1709333450134,-500.0,0.00021917,2]
[316042126,1709333450143,-500.0,0.00021917,2]
[316042127,1709333450153,-536.68,0.00021917,2]
[316042128,1709333450162,-500.0,0.00021917,2]
[316042129,1709333450171,-607.49055899,0.00021917,2]
[316042130,1709333450182,-500.0,0.00021917,2]
[316042131,1709333450191,-500.0,0.00021917,2]
[316042132,1709333450200,-531.55,0.00021917,2]
[316042133,1709333450209,-756.96,0.00021917,2]
[316042134,1709333450218,-510.96064012,0.00021917,2]
[316042135,1709333450228,-500.0,0.00021917,2]
[316042136,1709333450238,-664.55,0.00021917,2]
[316042137,1709333450247,-500.0,0.00021917,2]
[316042138,1709333450256,-500.0,0.00021917,2]
[316042139,1709333450265,-950.16,0.00021917,2]
[316042140,1709333450275,-1551.93,0.00021917,2]
[316042141,1709333450284,-500.0,0.00021917,2]
[316042142,1709333450293,-500.0,0.00021917,2]
[316042143,1709333450303,-500.0,0.00021917,2]
[316042144,1709333450312,-500.0,0.00021917,2]
[316042145,1709333450321,-500.0,0.00021917,2]
[316042146,1709333450330,-500.0,0.00021917,2]
[316042147,1709333450339,-500.0,0.00021917,2]
[316042148,1709333450349,-2351.54,0.00021917,2]
[316042149,1709333450358,-500.0,0.00021917,2]
[316042150,1709333450367,-500.0,0.00021917,2]
[316042151,1709333450377,-500.0,0.00021917,2]
[316042152,1709333450386,-500.0,0.00021917,2]
[316042153,1709333450395,-1054.88,0.00021917,2]
[316042154,1709333450404,-500.0,0.00021917,2]
[316042155,1709333450413,-500.0,0.00021917,2]
[316042156,1709333450422,-1582.5,0.00021917,2]
[316042157,1709333450432,-500.0,0.00021917,2]
[316042158,1709333450441,-2005.26,0.00021917,2]
[316042159,1709333450450,-500.0,0.00021917,2]
[316042160,1709333450460,-500.0,0.00021917,2]
[316042161,1709333450469,-500.0,0.00021917,2]
[316042162,1709333450479,-608.35251526,0.00021917,2]
[316042163,1709333450489,-500.0,0.00021917,2]
[316042164,1709333450498,-500.0,0.00021917,2]
[316042165,1709333450507,-500.0,0.00021917,2]
[316042166,1709333450520,-350.20893822,0.00021917,2]
[316042167,1709333450529,-500.0,0.00021917,2]
[316042168,1709333450538,-500.0,0.00021917,2]
[316042169,1709333450547,-500.0,0.00021917,2]
[316042170,1709333450557,-500.0,0.00021917,2]
[316042171,1709333450566,-500.0,0.00021917,2]
[316042172,1709333450575,-500.0,0.00021917,2]
[316042173,1709333450584,-500.0,0.00021917,2]
[316042174,1709333450595,-500.0,0.00021917,2]
[316042175,1709333450604,-500.0,0.00021917,2]
[316042176,1709333450613,-500.0,0.00021917,2]
[316042177,1709333450622,-500.0,0.00021917,2]
[316042178,1709333450631,-4810.37,0.00021917,2]
[316042179,1709333450640,-500.0,0.00021917,2]
[316042180,1709333450649,-500.0,0.00021917,2]
[316042181,1709333450658,-500.0,0.00021917,2]
[316042182,1709333450669,-500.0,0.00021917,2]
[316042183,1709333450678,-500.0,0.00021917,2]
[316042184,1709333450688,-500.0,0.00021917,2]
[316042185,1709333450698,-3074.58451003,0.00021917,2]
[316042186,1709333450720,-3612.71548997,0.00021917,2]
[316042187,1709333450729,-500.0,0.00021917,2]
[316042188,1709333450738,-500.0,0.00021917,2]
[316042189,1709333450747,-500.0,0.00021917,2]
[316042190,1709333450756,-500.0,0.00021917,2]
[316042191,1709333450766,-539.26,0.00021917,2]
[316042192,1709333450774,-500.0,0.00021917,2]
[316042193,1709333450783,-500.0,0.00021917,2]
[316042194,1709333450793,-1255.91,0.00021917,2]
[316042195,1709333450802,-500.0,0.00021917,2]
[316042196,1709333450811,-174.89,0.00021917,2]
[316042197,1709333450820,-500.0,0.00021917,2]
[316042198,1709333450829,-500.0,0.00021917,2]
[316042199,1709333450838,-500.0,0.00021917,2]
[316042200,1709333450847,-1576.25,0.00021917,2]
[316042201,1709333450857,-500.0,0.00021917,2]
[316042202,1709333450867,-500.0,0.00021917,2]
[316042203,1709333450876,-2391.81,0.00021917,2]
[316042204,1709333450885,-500.0,0.00021917,2]
[316042205,1709333450894,-500.0,0.00021917,2]
[316042206,1709333450904,-500.0,0.00021917,2]
[316042207,1709333450913,-500.0,0.00021917,2]
[316042208,1709333450922,-500.0,0.00021917,2]
[316042209,1709333450931,-1776.79,0.00021917,2]
[316042210,1709333450940,-546.86,0.00021917,2]
[316042211,1709333450949,-500.0,0.00021917,2]
[316042212,1709333450958,-727.15,0.00021917,2]
[316042213,1709333450967,-500.0,0.00021917,2]
[316042214,1709333450977,-500.0,0.00021917,2]
[316042215,1709333450986,-2130.47,0.00021917,2]
[316042216,1709333450995,-935.0,0.00021917,2]
[316042217,1709333451004,-500.0,0.00021917,2]
[316042218,1709333451013,-500.0,0.00021917,2]
[316042219,1709333451022,-500.0,0.00021917,2]
[316042220,1709333451032,-940.69,0.00021917,2]
[316042221,1709333451041,-568.61,0.00021917,2]
[316042222,1709333451050,-1107.12,0.00021917,2]
[316042223,1709333451059,-500.0,0.00021917,2]
[316042224,1709333451068,-500.0,0.00021917,2]
[316042225,1709333451078,-500.0,0.00021917,2]
[316042226,1709333451088,-500.0,0.00021917,2]
[316042227,1709333451097,-500.0,0.00021917,2]
[316042228,1709333451106,-500.0,0.00021917,2]
[316042229,1709333451115,-12380.45,0.00021917,2]
[316042230,1709333451125,-506.2985173,0.00021917,2]
[316042231,1709333451134,-500.0,0.00021917,2]
[316042232,1709333451144,-500.0,0.00021917,2]
[316042233,1709333451153,-2000.0,0.00021917,2]
[316042234,1709333451163,-613.71,0.00021917,2]
[316042235,1709333451173,-500.0,0.00021917,2]
[316042236,1709333451181,-500.0,0.00021917,2]
[316042237,1709333451191,-500.0,0.00021917,2]
[316042238,1709333451200,-875.18,0.00021917,2]
[316042239,1709333451210,-2506.71,0.00021917,2]
[316042240,1709333451219,-500.0,0.00021917,2]
[316042241,1709333451228,-200.0,0.00021917,2]
[316042242,1709333451238,-500.0,0.00021917,2]
[316042243,1709333451247,-500.0,0.00021917,2]
[316042244,1709333451256,-500.0,0.00021917,2]
[316042245,1709333451266,-747.71,0.00021917,2]
[316042246,1709333451275,-20936.84,0.00021917,2]
[316042247,1709333451284,-500.0,0.00021917,2]
[316042248,1709333451293,-500.0,0.00021917,2]
[316042249,1709333451302,-500.0,0.00021917,2]
[316042250,1709333451311,-500.0,0.00021917,2]
[316042251,1709333451320,-500.0,0.00021917,2]
[316042252,1709333451329,-500.0,0.00021917,2]
[316042253,1709333451338,-500.0,0.00021917,2]
[316042254,1709333451347,-500.0,0.00021917,2]
[316042255,1709333451356,-500.0,0.00021917,2]
[316042256,1709333451366,-1125.58,0.00021917,2]
[316042257,1709333451375,-6929.39,0.00021917,2]
[316042258,1709333451384,-500.0,0.00021917,2]
[316042259,1709333451393,-500.0,0.00021917,2]
[316042260,1709333451403,-2254.35,0.00021917,2]
[316042261,1709333451412,-500.0,0.00021917,2]
[316042262,1709333451421,-500.0,0.00021917,2]
[316042263,1709333451431,-500.0,0.00021917,2]
[316042264,1709333451440,-500.0,0.00021917,2]
[316042265,1709333451449,-500.0,0.00021917,2]
[316042266,1709333451459,-500.0,0.00021917,2]
[316042267,1709333451468,-717.19,0.00021917,2]
[316042268,1709333451477,-500.0,0.00021917,2]
[316042269,1709333451486,-500.0,0.00021917,2]
[316042270,1709333451495,-500.0,0.00021917,2]
[316042271,1709333451505,-500.0,0.00021917,2]
[316042272,1709333451517,-500.0,0.00021917,2]
[316042273,1709333451526,-721.21,0.00021917,2]
[316042274,1709333451535,-727.43,0.00021917,2]
[316042275,1709333451544,-500.0,0.00021917,2]
[316042276,1709333451554,-500.0,0.00021917,2]
[316042277,1709333451564,-500.0,0.00021917,2]
[316042278,1709333451574,-500.0,0.00021917,2]
[316042279,1709333451583,-500.0,0.00021917,2]
[316042280,1709333451593,-725.24,0.00021917,2]
[316042281,1709333451602,-1909.33,0.00021917,2]
[316042282,1709333451611,-588.64188078,0.00021917,2]
[316042283,1709333451622,-547.88,0.00021917,2]
[316042284,1709333451631,-634.74,0.00021917,2]
[316042285,1709333451640,-500.0,0.00021917,2]
[316042286,1709333451649,-500.0,0.00021917,2]
[316042287,1709333451659,-500.0,0.00021917,2]
[316042288,1709333451669,-1707.08,0.00021917,2]
[316042289,1709333451678,-582.97,0.00021917,2]
[316042290,1709333451687,-500.0,0.00021917,2]
[316042291,1709333451696,-500.0,0.00021917,2]
[316042292,1709333451706,-500.0,0.00021917,2]
[316042293,1709333451715,-500.0,0.00021917,2]
[316042294,1709333451725,-500.0,0.00021917,2]
[316042295,1709333451734,-500.0,0.00021917,2]
[316042296,1709333451743,-500.0,0.00021917,2]
[316042297,1709333451752,-500.0,0.00021917,2]
[316042298,1709333451761,-545.97525685,0.00021917,2]
[316042299,1709333451770,-500.0,0.00021917,2]
[316042300,1709333451780,-500.0,0.00021917,2]
[316042301,1709333451788,-500.0,0.00021917,2]
[316042302,1709333451798,-500.0,0.00021917,2]
[316042303,1709333451807,-500.0,0.00021917,2]
[316042304,1709333451816,-500.0,0.00021917,2]
[316042305,1709333451825,-500.0,0.00021917,2]
[316042306,1709333451835,-500.0,0.00021917,2]
[316042307,1709333451844,-500.0,0.00021917,2]
[316042308,1709333451853,-2141.58,0.00021917,2]
[316042309,1709333451863,-1500.0,0.00021918,3]
[316042310,1709333451872,-1517.87,0.00021918,2]
[316042311,1709333451882,-239.79953015,0.00021926,2]
[316042312,1709333451891,-170.75632413,0.00021927,2]
[316042313,1709333451900,-168.42315711,0.00021927,2]
[316042314,1709333451909,-160.63,0.00021938,2]
[316042315,1709333451918,-155.7,0.0002194,2]
[316042316,1709333451927,-157.19,0.00021953,2]
[316042317,1709333451936,-487.10993897,0.00021953,2]
[316042318,1709333451946,-26514.17053064,0.00022,2]
[316042319,1709333451955,-1493.3223225,0.00022,3]
[316042320,1709333451964,-1737186.95924124,0.00022,2]
[316042321,1709333452671,-3972.09929284,0.00022,2]
[316042322,1709333452682,-1757.01138733,0.00022,2]
[316042323,1709333452694,-273.59169232,0.00022,2]
[316042324,1709333452705,-4225.93524264,0.00022,2]
[316042325,1709333452717,-343.79598121,0.00022,2]
[316042326,1709333452729,-3057.84881248,0.00022,2]
[316042327,1709333453481,-155.04934788,0.00021916,2]
[316042328,1709333453491,-166.93670076,0.00021917,2]
[316042329,1709333453503,-333.06329924,0.00021917,2]
[316042330,1709333453513,-500.0,0.00021917,2]
[316042331,1709333453524,-500.0,0.00021917,2]
[316042332,1709333453533,-500.0,0.00021917,2]
[316042333,1709333453542,-500.0,0.00021917,2]
[316042334,1709333453552,-9006.27769054,0.00022,2]
[316042335,1709333453573,-500.0,0.00021917,2]
[316042336,1709333453582,-406.09560829,0.00022,2]
[316042337,1709333453608,-3038.82060904,0.00022,2]
[316042338,1709333453619,-7747.00081628,0.00022,2]
[316042339,1709333453631,-2599.80325596,0.00022,2]
[316042340,1709333453642,-454.67,0.00022,2]
[316042341,1709333453653,-35985.4594608,0.00022,2]
[316042342,1709333453664,-27593.50280268,0.00022,2]
[316042343,1709333453676,-10056.96054589,0.00022,2]
[316042344,1709333453692,-21295.4785,0.00022,2]
[316042345,1709333453704,-648.34406,0.00022,2]
[316042346,1709333453715,-1450.16783378,0.00022,2]
[316042347,1709333453726,-7353.1344418,0.00022,2]
[316042348,1709333464100,213.0,0.00020447,2]
[316042349,1709333514536,8441.08705481,0.0001778,2]
[316042350,1709333597090,466.12,0.00019091,2]
[316042351,1709333649522,5621.15273236,0.0002,2]
[316042352,1709333662475,9179.841,0.00021,2]
[316042353,1709333708738,1753.55,0.00020942,2]
[316042354,1709333753181,250.0,0.00020925,2]
[316042355,1709333762629,250.0,0.00020923,2]
[316042356,1709333793278,154.47,0.00020923,2]
[316042357,1709333858589,250.0,0.00020862,2]
[316042358,1709333967090,50868.23,0.00021,2]
[316042359,1709333985128,5000.0,0.00021,2]
[316042360,1709333993641,162.14711318,0.00020999,2]
[316042361,1709334010169,45637.72829606,0.00021,2]
[316042362,1709334033985,201.0,0.00020167,2]
[316042363,1709334041907,524.68,0.00020899,2]
[316042364,1709334153247,1169.03,0.00020873,2]
[316042365,1709334233102,10000.0,0.00021,2]
[316042366,1709334252925,10000.0,0.00021,2]
[316042367,1709334253354,475.75,0.00018947,2]
[316042368,1709334273962,250.0,0.00020848,2]
[316042369,1709334276440,345.11904,0.00020999,2]
[316042370,1709334317122,250.0,0.00020815,2]
[316042371,1709334321813,2550.0,0.0002,3]
[316042372,1709334394291,202.0,0.00020977,2]
[316042373,1709334406162,-151.24213819,0.00021,2]
[316042374,1709334501515,580.25,0.00020823,2]
[316042382,1709334634023,779.35,0.0002083,2]
[316042383,1709334634258,-10.90497499,0.00021,2]
[316042384,1709334634267,-1614.47852081,0.00021,2]
[316042385,1709334634276,-163.61,0.00021004,2]
[316042386,1709334634285,-150.0,0.00021052,2]
[316042387,1709334634295,-300.0,0.00021052,2]
[316042388,1709334634304,-300.0,0.00021052,2]
[316042389,1709334634314,-4804.7793708,0.00021053,2]
[316042390,1709334634363,-42359.2206292,0.00021053,2]
[316042391,1709334634373,-4142.35,0.00021096,2]
[316042392,1709334634385,-475.75,0.00021211,2]
[316042393,1709334634395,-154.47,0.00021272,2]
[316042394,1709334634404,-35449.93,0.00021317,3]
[316042395,1709334634413,-41308.93,0.00021317,3]
[316042396,1709334634423,-64581.76,0.00021317,3]
[316042397,1709334634432,-791.57246514,0.00021436,6]
[316042398,1709334634443,-791.57246514,0.00021448,6]
[316042399,1709334634452,-1088.24782185,0.00021455,6]
[316042400,1709334634461,-791.57246514,0.00021456,6]
[316042401,1709334634470,-1088.24782185,0.00021468,6]
[316042402,1709334634479,-791.57246514,0.00021477,6]
[316042403,1709334634489,-1088.24782185,0.00021482,6]
[316042404,1709334634498,-1088.24782185,0.0002149,6]
[316042405,1709334634507,-2500.0,0.000215,2]
[316042406,1709334634516,-499.99,0.00021617,2]
[316042407,1709334634526,-3537.51176463,0.00021617,2]
[316042408,1709334634537,-600.1799757,0.00021617,2]
[316042409,1709334634562,-370.7,0.00021617,2]
[316042410,1709334637809,-8953.87825967,0.00021617,2]
[316042411,1709334637818,-650.0,0.00021617,2]
[316042412,1709334637827,-2456.3049,0.00021617,2]
[316042413,1709334637836,-154.47,0.0002162,2]
[316042414,1709334637845,-150.99,0.0002162,2]
[316042415,1709334637855,-3282.9,0.0002162,2]
[316042416,1709334637866,-1887.73,0.0002162,2]
[316042417,1709334637879,-165.37,0.00021625,2]
[316042418,1709334637893,-2198.0,0.00021644,3]
[316042419,1709334637902,-29232.82171264,0.00021717,2]
[316042420,1709334638417,-305.55900006,0.00021717,2]
[316042421,1709334638442,-14491.499373,0.00021717,2]
[316042422,1709334638453,-531.79482725,0.00021717,2]
[316042423,1709334638464,-1247.59066705,0.00021717,2]
[316042424,1709334638494,-14492.50207618,0.00021717,2]
[316042425,1709334638545,-56341.10074382,0.00021717,2]
[316042426,1709334638554,-253.5555,0.00021717,2]
[316042427,1709334638564,-1000.0,0.00021787,2]
[316042428,1709334638573,-1999.3469,0.000218,2]
[316042429,1709334638582,-1000.0,0.000218,2]
[316042430,1709334638591,-7826.26890534,0.00021816,2]
[316042431,1709334638600,-5000.0,0.00021817,2]
[316042432,1709334638610,-5000.0,0.00021817,2]
[316042433,1709334638618,-159.99782438,0.00021817,2]
[316042434,1709334638628,-171.72357029,0.00021817,2]
[316042435,1709334638637,-169.59080692,0.00021817,2]
[316042436,1709334638646,-200.0,0.00021824,2]
[316042437,1709334638655,-1000.0,0.00021889,3]
[316042439,1709334638664,-317.60619111,0.0002189,2]
[316042441,1709334638673,-150.55,0.0002189,2]
[316042443,1709334638682,-151.6232971,0.00021893,2]
[316042445,1709334638692,-1452.03981675,0.000219,2]
[316042446,1709334638701,-24111.16080713,0.000219,2]
[316042447,1709334638713,-2440.56888441,0.000219,2]
[316042449,1709334638724,-25365.67324951,0.000219,2]
[316042453,1709334638754,-15622.879787,0.000219,2]
[316042455,1709334638764,-1697.05221973,0.000219,2]
[316042461,1709334638811,-652.69310717,0.000219,2]
[316042619,1709334640363,-920.69902626,0.00021817,2]
[316042621,1709334640375,-2427.92306552,0.00021817,2]
[316042624,1709334640386,-1651.37790822,0.00021817,2]
[316042626,1709334640395,-74282.15486731,0.000219,2]
[316042636,1709334640481,-622.42206516,0.000219,2]
[316042664,1709334640717,-13034.49733396,0.000219,2]
[316042676,1709334640821,-6477.7103608,0.000219,2]
[316042680,1709334640845,-3025.14363081,0.000219,2]
[316042682,1709334640855,-253.84501101,0.000219,2]
[316042899,1709334642949,-1067.04,0.00021893,2]
[316042901,1709334642961,-13314.39957736,0.000219,2]
[316042913,1709334643058,-62871.25973316,0.000219,2]
[316042921,1709334643128,-418.73713981,0.000219,2]
[316042923,1709334643138,-36.91429239,0.000219,2]
[316042947,1709334645898,-2419.88932548,0.000219,2]
[316042948,1709334645959,-1705.79723539,0.000219,2]
[316042949,1709334645968,-5278.757933,0.000219,2]
[316042950,1709334645984,-3790.54023906,0.000219,2]
[316042951,1709334646007,-608.31405963,0.000219,2]
[316042952,1709334646032,-399.68594037,0.000219,2]
[316042953,1709334646054,-328.42170629,0.000219,2]
[316042954,1709334646105,-450.29770615,0.000219,2]
[316042955,1709334646125,-658.6038402,0.000219,2]
[316042956,1709334646135,-258.82881894,0.000219,2]
[316042957,1709334646144,-3338.72922672,0.000219,2]
[316042958,1709334646153,-231.69389528,0.000219,5]
[316042959,1709334646163,-5105.2846242,0.000219,3]
[316042960,1709334646172,-1009.34064671,0.00021915,2]
[316042961,1709334646181,-1000.0,0.00021916,2]
[316042962,1709334646191,-4597.78032523,0.00021917,4]
[316042963,1709334687340,428.17,0.00019092,2]
[316042964,1709334693852,200.0,0.00020977,2]
[316042965,1709334704606,158.7,0.00020848,2]
[316042966,1709334714057,164.66,0.00020997,2]
[316042967,1709334717558,712.7246,0.000209,2]
[316042968,1709334744182,150.0,0.00020848,2]
[316042969,1709334772540,250.0,0.00020964,2]